fUSD/lending_fUSD_20260630
["ID","MTS","AMOUNT","RATE_DAILY","PERIOD"]
[426700457,1782751108000,-330.35,0.00028516,30]
[426700451,1782751108000,-330.35,0.0002755,30]
[426700452,1782751108000,-522.91,0.0002755,30]
[426700453,1782751108000,-355.58,0.0002755,30]
[426700454,1782751108000,-330.35,0.00028033,30]
[426700455,1782751108000,-522.91,0.00028033,30]
[426700456,1782751108000,-355.58,0.00028033,30]
[426700458,1782751108000,-522.91,0.00028516,30]
[426700461,1782751108000,-381.0,0.0002977,30]
[426700460,1782751108000,-381.0,0.0002877,30]
[426700467,1782751108000,-381.0,0.0003377,30]
[426700462,1782751108000,-381.0,0.0003077,30]
[426700463,1782751108000,-381.0,0.0003177,30]
[426700464,1782751108000,-381.0,0.0003277,30]
[426700465,1782751108000,-2000.0,0.00032877,50]
[426700466,1782751108000,-2084.63,0.000333,30]
[426700459,1782751108000,-355.58,0.00028516,30]
[426700469,1782751109000,-2084.63,0.000341,30]
[426700468,1782751109000,-176.4163442,0.00033786,60]
[426700471,1782751109000,-200.30438808,0.000348,120]
[426700470,1782751109000,-381.0,0.0003477,30]
[426700473,1782751109000,-185.12276512,0.00035438,30]
[426700472,1782751109000,-255.41896795,0.000348,120]
[426700474,1782751109000,-183.496788,0.00035617,120]
[426700476,1782751109000,-150.0,0.00035656,60]
[426700475,1782751109000,-150.0,0.00035656,60]
[426700477,1782751109000,-296.0758621,0.00035666,120]
[426700479,1782751109000,-152.1687274,0.00035666,120]
[426700480,1782751109000,-209.994157,0.00035666,120]
[426700481,1782751109000,-305.1348986,0.00035666,120]
[426700482,1782751109000,-500.0,0.00035666,120]
[426700483,1782751109000,-516.6411292,0.00035666,120]
[426700484,1782751109000,-176.4163441,0.00035666,120]
[426700485,1782751109000,-1306.12546437,0.00035672,120]
[426700478,1782751109000,-372.5023922,0.00035666,120]
[426700493,1782751110000,-638.0,0.00035881,30]
[426700492,1782751110000,-638.0,0.00035881,30]
[426700494,1782751110000,-638.0,0.00035881,30]
[426700486,1782751110000,-579.65,0.00035672,120]
[426700489,1782751110000,-500.0,0.00035881,60]
[426700487,1782751110000,-323.09,0.00035793,120]
[426700488,1782751110000,-162.20175249,0.000358,30]
[426700490,1782751110000,-638.0,0.00035881,30]
[426700495,1782751110000,-638.0,0.00035881,30]
[426700491,1782751110000,-638.0,0.00035881,30]
[426700498,1782751110000,-538.694,0.00035881,30]
[426700505,1782751110000,-1000.0,0.00036,60]
[426700504,1782751110000,-160.0,0.00036,30]
[426700503,1782751110000,-424.0,0.00036,30]
[426700502,1782751110000,-255.41896795,0.000359,120]
[426700496,1782751110000,-638.0,0.00035881,30]
[426700500,1782751110000,-205.06990361,0.000359,120]
[426700499,1782751110000,-149774.0,0.0003589,30]
[426700497,1782751110000,-638.0,0.00035881,30]
[426700501,1782751110000,-200.30438808,0.000359,120]
[426700506,1782751111000,-8017.0,0.00036,106]
[426700507,1782751111000,-288.88737938,0.0003611,30]
[426700509,1782751111000,-179.3,0.0003625,120]
[426700511,1782751111000,-225.51516785,0.00036317,30]
[426700512,1782751111000,-271.21177461,0.00036317,30]
[426700513,1782751111000,-150.0,0.00036342,60]
[426700514,1782751111000,-6000.0,0.000366,30]
[426700508,1782751111000,-173.901025,0.00036116,120]
[426700517,1782751111000,-161.1424061,0.000368,90]
[426700515,1782751111000,-323.09,0.00036614,120]
[426700522,1782751111000,-150.0,0.00036986,60]
[426700521,1782751111000,-334.54,0.00036904,120]
[426700520,1782751111000,-1042.3,0.00036904,120]
[426700510,1782751111000,-415.391164,0.00036265,30]
[426700518,1782751111000,-355.9,0.00036904,120]
[426700519,1782751111000,-445.25,0.00036904,120]
[426700516,1782751111000,-167.072556,0.00036616,120]
[426700525,1782751112000,216.9,0.00027794,30]
[426700524,1782751112000,216.9,0.00027702,30]
[426700523,1782751112000,216.9,0.00027611,30]
[426700528,1782751160000,-174.52,0.00013518,2]
[426700530,1782751172000,-317.317,0.00013546,2]
[426700529,1782751172000,-250.0,0.00013532,2]
[426700532,1782751214000,-182.683,0.00013546,2]
[426700535,1782751254000,665.0,0.00013561,7]
[426700534,1782751254000,665.0,0.00013596,7]
[426700533,1782751254000,665.0,0.00013597,7]
[426700537,1782751255000,658.39,0.00013546,7]
[426700536,1782751255000,665.0,0.00013547,7]
[426700538,1782751267000,-500.0,0.00013546,2]
[426700539,1782751321000,-614.89476824,0.00013546,2]
[426700540,1782751373000,-298.30577134,0.00013547,2]
[426700541,1782751378000,1406.432946,0.0002,120]
[426700542,1782751378000,1406.432946,0.00025,120]
[426700544,1782751516000,-3770.982,0.00013326,2]
[426700546,1782751516000,-220.0,0.00013458,2]
[426700545,1782751516000,-309.209,0.00013326,2]
[426700557,1782751517000,-500.0,0.00013597,2]
[426700547,1782751517000,-179.43275202,0.00013497,2]
[426700548,1782751517000,-2500.0,0.00013498,2]
[426700549,1782751517000,-1303.50627035,0.0001352,2]
[426700550,1782751517000,-256.0894701,0.0001352,2]
[426700551,1782751517000,-408.37682639,0.00013547,2]
[426700555,1782751517000,-500.0,0.00013597,2]
[426700554,1782751517000,-380.58488495,0.00013597,2]
[426700556,1782751517000,-500.0,0.00013597,2]
[426700558,1782751517000,-371.46142174,0.00013597,2]
[426700559,1782751517000,-34510.74065698,0.00013598,2]
[426700553,1782751517000,-274.61671747,0.00013597,2]
[426700552,1782751517000,-150.0,0.00013597,2]
[426700561,1782751550000,152.58277419,0.00012798,2]
[426700560,1782751550000,544.41722581,0.00012798,2]
[426700562,1782751687000,3515.952415,0.0002,120]
[426700563,1782751687000,3515.952415,0.00025,120]
[426700564,1782751704000,-299.79744747,0.00012798,2]
[426700565,1782751711000,2500.0,0.00028767,120]
[426700581,1782751739000,-500.0,0.00013519,2]
[426700566,1782751739000,-250.0,0.00013028,2]
[426700567,1782751739000,-150.0,0.00013144,2]
[426700568,1782751739000,-1870.709721,0.00013259,2]
[426700569,1782751739000,-250.0,0.000133,2]
[426700570,1782751739000,-278.23164069,0.00013326,2]
[426700571,1782751739000,-2500.0,0.00013498,2]
[426700572,1782751739000,-4188.3477,0.00013498,2]
[426700574,1782751739000,-159.09758681,0.00013519,2]
[426700573,1782751739000,-10738.9141,0.00013498,2]
[426700575,1782751739000,-500.0,0.00013519,2]
[426700578,1782751739000,-500.0,0.00013519,2]
[426700577,1782751739000,-500.0,0.00013519,2]
[426700579,1782751739000,-310.02299522,0.00013519,2]
[426700580,1782751739000,-500.0,0.00013519,2]
[426700576,1782751739000,-192.23170223,0.00013519,2]
[426700582,1782751740000,-266.40941946,0.00013519,2]
[426700584,1782751740000,-566.45427824,0.0001352,2]
[426700583,1782751740000,-284.61859978,0.00013519,2]
[426700586,1782751740000,-1000.0,0.00013597,2]
[426700587,1782751740000,-150.0,0.00013597,2]
[426700588,1782751740000,-10692.46672291,0.00013598,2]
[426700585,1782751740000,-5482.49553366,0.0001352,2]
[426700589,1782751757000,-12056.16507793,0.00013561,2]
[426700590,1782751771000,-6748.37394605,0.00013561,2]
[426700591,1782751773000,-5409.585888,0.00013561,2]
[426700592,1782751786000,-6377.49541997,0.00013561,2]
[426700594,1782751830000,2500.0,0.00028767,120]
[426700634,1782751832000,-300.0,0.00014078,2]
[426700632,1782751832000,-267.97465902,0.00014078,2]
[426700631,1782751832000,-200.0,0.00014078,2]
[426700626,1782751832000,-600.0,0.00014078,2]
[426700624,1782751832000,-166.66,0.00014003,2]
[426700636,1782751832000,-300.0,0.00014078,2]
[426700625,1782751832000,-9129.96,0.00014039,2]
[426700629,1782751832000,-200.0,0.00014078,2]
[426700635,1782751832000,-300.0,0.00014078,2]
[426700630,1782751832000,-200.0,0.00014078,2]
[426700639,1782751832000,-166.66,0.00014286,2]
[426700637,1782751832000,-155.22,0.00014151,2]
[426700638,1782751832000,-255.09,0.0001428,2]
[426700640,1782751832000,-200.0,0.00014407,2]
[426700641,1782751832000,-33347.6671,0.00014414,2]
[426700643,1782751832000,-304.29731807,0.00014453,2]
[426700651,1782751832000,-151.0,0.00014514,2]
[426700654,1782751832000,-255.0,0.00014712,2]
[426700653,1782751832000,-174.45,0.00014598,2]
[426700633,1782751832000,-250.0,0.00014078,2]
[426700622,1782751832000,-150.0,0.00013986,2]
[426700618,1782751832000,-11678.71940124,0.00013765,2]
[426700623,1782751832000,-150.0,0.00013986,2]
[426700602,1782751832000,-151.0,0.00013598,2]
[426700603,1782751832000,-151.0,0.00013598,2]
[426700604,1782751832000,-153.0,0.00013598,2]
[426700607,1782751832000,-150.0,0.00013598,2]
[426700611,1782751832000,-159.32,0.00013685,2]
[426700608,1782751832000,-151.0,0.00013598,2]
[426700609,1782751832000,-151.0,0.00013598,2]
[426700610,1782751832000,-1136.45,0.00013661,2]
[426700612,1782751832000,-500.0,0.00013698,2]
[426700621,1782751832000,-237.39,0.00013986,2]
[426700605,1782751832000,-151.0,0.00013598,2]
[426700606,1782751832000,-151.0,0.00013598,2]
[426700614,1782751832000,-500.0,0.00013698,2]
[426700615,1782751832000,-500.0,0.00013698,2]
[426700617,1782751832000,-1097.29,0.00013731,2]
[426700628,1782751832000,-600.0,0.00014078,2]
[426700627,1782751832000,-600.0,0.00014078,2]
[426700619,1782751832000,-1167.12,0.00013912,2]
[426700616,1782751832000,-166.66,0.0001372,2]
[426700644,1782751832000,-171.89,0.00014456,2]
[426700613,1782751832000,-500.0,0.00013698,2]
[426700642,1782751832000,-2000.0,0.00014414,2]
[426700620,1782751832000,-150.0,0.00013986,2]
[426700645,1782751832000,-500.74,0.00014459,2]
[426700667,1782751832000,-500.0,0.00014713,2]
[426700669,1782751832000,-500.0,0.00014713,2]
[426700671,1782751832000,-500.0,0.00014713,2]
[426700678,1782751832000,-2183.99,0.00014713,2]
[426700682,1782751832000,-809.62,0.00014713,2]
[426700689,1782751832000,-1211.21,0.00014713,2]
[426700680,1782751832000,-809.62,0.00014713,2]
[426700681,1782751832000,-809.62,0.00014713,2]
[426700679,1782751832000,-809.62,0.00014713,2]
[426700672,1782751832000,-180.84613501,0.00014713,2]
[426700684,1782751832000,-809.62,0.00014713,2]
[426700683,1782751832000,-809.62,0.00014713,2]
[426700687,1782751832000,-1211.21,0.00014713,2]
[426700688,1782751832000,-1211.21,0.00014713,2]
[426700691,1782751832000,-500.0,0.00014713,2]
[426700690,1782751832000,-1211.21,0.00014713,2]
[426700694,1782751832000,-500.0,0.00014713,2]
[426700693,1782751832000,-500.0,0.00014713,2]
[426700692,1782751832000,-500.0,0.00014713,2]
[426700652,1782751832000,-166.66,0.00014568,2]
[426700685,1782751832000,-1211.21,0.00014713,2]
[426700674,1782751832000,-2183.99,0.00014713,2]
[426700686,1782751832000,-1211.21,0.00014713,2]
[426700677,1782751832000,-2183.99,0.00014713,2]
[426700646,1782751832000,-3581.9,0.00014487,2]
[426700668,1782751832000,-500.0,0.00014713,2]
[426700647,1782751832000,-200.0,0.00014491,2]
[426700649,1782751832000,-151.0,0.00014514,2]
[426700650,1782751832000,-151.0,0.00014514,2]
[426700648,1782751832000,-151.0,0.00014511,2]
[426700656,1782751832000,-500.0,0.00014713,2]
[426700655,1782751832000,-505.96498963,0.00014713,2]
[426700658,1782751832000,-500.0,0.00014713,2]
[426700661,1782751832000,-500.0,0.00014713,2]
[426700657,1782751832000,-500.0,0.00014713,2]
[426700660,1782751832000,-500.0,0.00014713,2]
[426700666,1782751832000,-500.0,0.00014713,2]
[426700664,1782751832000,-500.0,0.00014713,2]
[426700662,1782751832000,-500.0,0.00014713,2]
[426700665,1782751832000,-500.0,0.00014713,2]
[426700663,1782751832000,-500.0,0.00014713,2]
[426700675,1782751832000,-2183.99,0.00014713,2]
[426700673,1782751832000,-2183.99,0.00014713,2]
[426700659,1782751832000,-500.0,0.00014713,2]
[426700676,1782751832000,-2183.99,0.00014713,2]
[426700670,1782751832000,-500.0,0.00014713,2]
[426700734,1782751833000,-1211.21,0.00014898,2]
[426700732,1782751833000,-1211.21,0.00014898,2]
[426700730,1782751833000,-1211.21,0.00014898,2]
[426700733,1782751833000,-1211.21,0.00014898,2]
[426700728,1782751833000,-809.62,0.00014898,2]
[426700736,1782751833000,-217.10979211,0.00014898,2]
[426700727,1782751833000,-809.62,0.00014898,2]
[426700735,1782751833000,-1211.21,0.00014898,2]
[426700724,1782751833000,-809.62,0.00014898,2]
[426700731,1782751833000,-1211.21,0.00014898,2]
[426700726,1782751833000,-809.62,0.00014898,2]
[426700729,1782751833000,-809.62,0.00014898,2]
[426700737,1782751833000,-869.61,0.00014898,2]
[426700745,1782751833000,-733.82,0.00014898,2]
[426700740,1782751833000,-869.61,0.00014898,2]
[426700744,1782751833000,-733.82,0.00014898,2]
[426700741,1782751833000,-869.61,0.00014898,2]
[426700742,1782751833000,-869.61,0.00014898,2]
[426700743,1782751833000,-733.82,0.00014898,2]
[426700746,1782751833000,-733.82,0.00014898,2]
[426700738,1782751833000,-869.61,0.00014898,2]
[426700748,1782751833000,-733.82,0.00014898,2]
[426700749,1782751833000,-151.0,0.00014898,2]
[426700747,1782751833000,-733.82,0.00014898,2]
[426700751,1782751833000,-360.11995351,0.00014958,2]
[426700725,1782751833000,-809.62,0.00014898,2]
[426700739,1782751833000,-869.61,0.00014898,2]
[426700720,1782751833000,-2183.99,0.00014898,2]
[426700709,1782751833000,-500.74,0.00014821,2]
[426700717,1782751833000,-535.7374899,0.00014898,2]
[426700752,1782751833000,-2183.99,0.00014998,2]
[426700695,1782751833000,-500.0,0.00014713,2]
[426700696,1782751833000,-500.0,0.00014713,2]
[426700697,1782751833000,-869.61,0.00014713,2]
[426700710,1782751833000,-166.66,0.00014851,2]
[426700699,1782751833000,-869.61,0.00014713,2]
[426700698,1782751833000,-869.61,0.00014713,2]
[426700701,1782751833000,-869.61,0.00014713,2]
[426700700,1782751833000,-869.61,0.00014713,2]
[426700704,1782751833000,-733.82,0.00014713,2]
[426700702,1782751833000,-869.61,0.00014713,2]
[426700705,1782751833000,-733.82,0.00014713,2]
[426700721,1782751833000,-2183.99,0.00014898,2]
[426700703,1782751833000,-733.82,0.00014713,2]
[426700707,1782751833000,-733.82,0.00014713,2]
[426700708,1782751833000,-733.82,0.00014713,2]
[426700722,1782751833000,-2183.99,0.00014898,2]
[426700712,1782751833000,-500.0,0.00014898,2]
[426700723,1782751833000,-2183.99,0.00014898,2]
[426700713,1782751833000,-500.0,0.00014898,2]
[426700711,1782751833000,-500.0,0.00014898,2]
[426700714,1782751833000,-521.36271652,0.00014898,2]
[426700715,1782751833000,-500.0,0.00014898,2]
[426700718,1782751833000,-2183.99,0.00014898,2]
[426700719,1782751833000,-2183.99,0.00014898,2]
[426700716,1782751833000,-500.0,0.00014898,2]
[426700706,1782751833000,-733.82,0.00014713,2]
[426700750,1782751833000,-300.0,0.00014958,2]
[426700774,1782751833000,-500.0,0.00016438,2]
[426700755,1782751833000,-869.61,0.00014998,2]
[426700784,1782751833000,-315.19853209,0.00016438,2]
[426700793,1782751833000,-150.0,0.000165,2]
[426700794,1782751833000,-241.51,0.000165,2]
[426700785,1782751833000,-500.0,0.00016438,2]
[426700788,1782751833000,-500.0,0.00016438,2]
[426700792,1782751833000,-500.0,0.00016438,2]
[426700787,1782751833000,-500.0,0.00016438,2]
[426700789,1782751833000,-500.0,0.00016438,2]
[426700791,1782751833000,-500.0,0.00016438,2]
[426700790,1782751833000,-500.0,0.00016438,2]
[426700795,1782751833000,-150.0,0.000166,2]
[426700798,1782751833000,-150.99,0.00016922,2]
[426700786,1782751833000,-500.0,0.00016438,2]
[426700800,1782751833000,-63208.02,0.00016922,2]
[426700806,1782751833000,-1303.5062703,0.00016937,2]
[426700801,1782751833000,-1341.88,0.00016922,2]
[426700797,1782751833000,-299.99,0.00016922,4]
[426700796,1782751833000,-9556.42,0.00016922,2]
[426700803,1782751833000,-4828.71,0.00016922,2]
[426700799,1782751833000,-9999.99,0.00016922,2]
[426700804,1782751833000,-7241.04,0.00016922,2]
[426700807,1782751833000,-300.0,0.00017,2]
[426700809,1782751833000,-1097.29,0.00017163,2]
[426700808,1782751833000,-250.0,0.00017107,2]
[426700811,1782751833000,-408.37682636,0.00017529,2]
[426700753,1782751833000,-809.62,0.00014998,2]
[426700802,1782751833000,-268.14,0.00016922,2]
[426700782,1782751833000,-500.0,0.00016438,2]
[426700805,1782751833000,-566.4542782,0.00016936,2]
[426700776,1782751833000,-500.0,0.00016438,2]
[426700783,1782751833000,-500.0,0.00016438,2]
[426700756,1782751833000,-733.82,0.00014998,2]
[426700754,1782751833000,-1211.21,0.00014998,2]
[426700757,1782751833000,-2137.64,0.00015082,2]
[426700760,1782751833000,-500.74,0.00015543,2]
[426700761,1782751833000,-288.06,0.00015826,2]
[426700763,1782751833000,-433.0,0.00015922,2]
[426700762,1782751833000,-500.74,0.00015905,2]
[426700764,1782751833000,-159.32,0.00015966,2]
[426700758,1782751833000,-500.74,0.00015182,2]
[426700765,1782751833000,-5482.49553364,0.00015968,2]
[426700766,1782751833000,-150.0,0.00016,2]
[426700768,1782751833000,-300.0,0.000164,2]
[426700759,1782751833000,-1097.29,0.00015447,2]
[426700769,1782751833000,-663.25,0.00016438,2]
[426700767,1782751833000,-30591.62033188,0.00016005,2]
[426700777,1782751833000,-500.0,0.00016438,2]
[426700770,1782751833000,-500.0,0.00016438,2]
[426700775,1782751833000,-500.0,0.00016438,2]
[426700773,1782751833000,-500.0,0.00016438,2]
[426700780,1782751833000,-500.0,0.00016438,2]
[426700779,1782751833000,-500.0,0.00016438,2]
[426700778,1782751833000,-500.0,0.00016438,2]
[426700771,1782751833000,-500.0,0.00016438,2]
[426700772,1782751833000,-500.0,0.00016438,2]
[426700810,1782751833000,-484.0,0.00017228,2]
[426700781,1782751833000,-500.0,0.00016438,2]
[426700839,1782751834000,-178.5,0.00020405,5]
[426700841,1782751834000,-178.5,0.00020405,5]
[426700854,1782751834000,-240.91656067,0.00020659,2]
[426700838,1782751834000,-1303.5062703,0.00020353,2]
[426700835,1782751834000,-475.0,0.0002,2]
[426700837,1782751834000,-566.4542782,0.00020352,2]
[426700840,1782751834000,-178.5,0.00020405,5]
[426700844,1782751834000,-178.5,0.00020405,5]
[426700850,1782751834000,-150.0,0.00020547,2]
[426700845,1782751834000,-178.5,0.00020405,5]
[426700847,1782751834000,-178.5,0.00020405,5]
[426700853,1782751834000,-500.0,0.00020659,2]
[426700849,1782751834000,-159.32,0.00020528,2]
[426700846,1782751834000,-178.5,0.00020405,5]
[426700852,1782751834000,-1097.29,0.00020596,2]
[426700851,1782751834000,-598.6,0.00020548,2]
[426700855,1782751834000,-5482.49553364,0.00020865,2]
[426700856,1782751834000,-30591.62033188,0.00020892,2]
[426700836,1782751834000,-1464.980173,0.0002,2]
[426700857,1782751834000,-150.0,0.00021,2]
[426700848,1782751834000,-274.9834153,0.00020439,10]
[426700842,1782751834000,-178.5,0.00020405,5]
[426700820,1782751834000,-300.0,0.00019,2]
[426700832,1782751834000,-192.0,0.0002,2]
[426700860,1782751834000,-381.0,0.00021,2]
[426700817,1782751834000,-5482.49553364,0.00018417,2]
[426700818,1782751834000,-30591.62033188,0.00018448,2]
[426700816,1782751834000,-174.45,0.00018248,2]
[426700815,1782751834000,-159.32,0.00018247,2]
[426700814,1782751834000,-337.5971836,0.00018247,10]
[426700812,1782751834000,-196.65674306,0.00017872,2]
[426700813,1782751834000,-300.0,0.00018,2]
[426700821,1782751834000,-337.5971836,0.00019069,10]
[426700824,1782751834000,-168.7985918,0.000192,10]
[426700822,1782751834000,-549.96683059,0.00019069,10]
[426700823,1782751834000,-2522.0,0.000192,2]
[426700825,1782751834000,-1167.12,0.00019477,2]
[426700827,1782751834000,-300.0,0.0002,2]
[426700829,1782751834000,-426.0,0.0002,2]
[426700830,1782751834000,-381.0,0.0002,2]
[426700831,1782751834000,-684.0,0.0002,2]
[426700828,1782751834000,-176.0,0.0002,2]
[426700826,1782751834000,-549.96683059,0.0001948,10]
[426700833,1782751834000,-221.0,0.0002,2]
[426700843,1782751834000,-178.5,0.00020405,5]
[426700834,1782751834000,-792.0,0.0002,2]
[426700859,1782751834000,-426.0,0.00021,2]
[426700819,1782751834000,-1097.29,0.0001888,2]
[426700858,1782751834000,-176.0,0.00021,2]
[426700884,1782751834000,-500.0,0.00021917,2]
[426700890,1782751834000,-500.0,0.00021917,2]
[426700889,1782751834000,-500.0,0.00021917,2]
[426700893,1782751834000,-150.0,0.00022,2]
[426700892,1782751834000,-5000.0,0.00021918,2]
[426700891,1782751834000,-500.0,0.00021917,2]
[426700895,1782751834000,-426.0,0.00022,2]
[426700894,1782751834000,-176.0,0.00022,2]
[426700896,1782751834000,-381.0,0.00022,2]
[426700897,1782751834000,-684.0,0.00022,2]
[426700899,1782751834000,-221.0,0.00022,2]
[426700901,1782751834000,-475.0,0.00022,2]
[426700898,1782751834000,-192.0,0.00022,2]
[426700908,1782751834000,-381.0,0.00023,2]
[426700900,1782751834000,-792.0,0.00022,2]
[426700902,1782751834000,-3311.89,0.00022,2]
[426700905,1782751834000,-150.0,0.00023,2]
[426700904,1782751834000,-348.22,0.00022466,2]
[426700907,1782751834000,-426.0,0.00023,2]
[426700906,1782751834000,-176.0,0.00023,2]
[426700862,1782751834000,-192.0,0.00021,2]
[426700888,1782751834000,-500.0,0.00021917,2]
[426700887,1782751834000,-500.0,0.00021917,2]
[426700903,1782751834000,-1033.56,0.00022466,2]
[426700885,1782751834000,-500.0,0.00021917,2]
[426700886,1782751834000,-500.0,0.00021917,2]
[426700863,1782751834000,-221.0,0.00021,2]
[426700864,1782751834000,-792.0,0.00021,2]
[426700866,1782751834000,-188.04828906,0.00021199,2]
[426700867,1782751834000,-370.82,0.00021273,2]
[426700865,1782751834000,-475.0,0.00021,2]
[426700868,1782751834000,-151.0,0.00021299,2]
[426700870,1782751834000,-151.0,0.00021299,2]
[426700869,1782751834000,-151.0,0.00021299,2]
[426700871,1782751834000,-151.0,0.00021299,2]
[426700873,1782751834000,-151.0,0.00021299,2]
[426700861,1782751834000,-684.0,0.00021,2]
[426700872,1782751834000,-151.0,0.00021299,2]
[426700874,1782751834000,-151.0,0.00021299,2]
[426700881,1782751834000,-869.61,0.00021724,2]
[426700878,1782751834000,-2183.99,0.00021724,2]
[426700877,1782751834000,-408.37682636,0.0002151,2]
[426700882,1782751834000,-733.82,0.00021724,2]
[426700879,1782751834000,-809.62,0.00021724,2]
[426700880,1782751834000,-1211.21,0.00021724,2]
[426700875,1782751834000,-151.0,0.00021299,2]
[426700876,1782751834000,-1464.980173,0.000215,2]
[426700883,1782751834000,-174.45,0.00021897,2]
[426700928,1782751835000,-187.82604524,0.00023898,2]
[426700938,1782751835000,-171.19650603,0.00023905,2]
[426700932,1782751835000,-192.58475076,0.00023902,2]
[426700930,1782751835000,-224.00503136,0.00023902,2]
[426700931,1782751835000,-154.40973837,0.00023902,2]
[426700933,1782751835000,-195.88183763,0.00023902,2]
[426700934,1782751835000,-160.10237614,0.00023902,2]
[426700940,1782751835000,-206.81117376,0.00023905,2]
[426700943,1782751835000,-184.31283146,0.00023907,2]
[426700939,1782751835000,-171.90136845,0.00023905,2]
[426700946,1782751835000,-154.1339088,0.00023907,2]
[426700942,1782751835000,-212.66156597,0.00023905,2]
[426700947,1782751835000,-152.5075957,0.00023907,2]
[426700944,1782751835000,-181.61216158,0.00023907,2]
[426700945,1782751835000,-173.00235255,0.00023907,2]
[426700950,1782751835000,-206.92825988,0.00023907,2]
[426700936,1782751835000,-151.72064234,0.00023902,2]
[426700941,1782751835000,-179.58167073,0.00023905,2]
[426700929,1782751835000,-163.43255378,0.00023902,2]
[426700918,1782751835000,-150.0,0.000233,2]
[426700937,1782751835000,-180.1437781,0.00023905,2]
[426700951,1782751835000,-181.66504109,0.00023907,2]
[426700910,1782751835000,-192.0,0.00023,2]
[426700915,1782751835000,-1151.88321912,0.00023069,7]
[426700911,1782751835000,-221.0,0.00023,2]
[426700909,1782751835000,-684.0,0.00023,2]
[426700913,1782751835000,-475.0,0.00023,2]
[426700914,1782751835000,-1464.980173,0.00023,2]
[426700912,1782751835000,-792.0,0.00023,2]
[426700917,1782751835000,-150.0,0.000232,2]
[426700916,1782751835000,-150.0,0.000231,2]
[426700919,1782751835000,-5482.49553364,0.00023313,2]
[426700921,1782751835000,-150.0,0.000235,2]
[426700920,1782751835000,-30591.62033188,0.00023336,2]
[426700923,1782751835000,-1303.5062703,0.0002377,2]
[426700925,1782751835000,-153.54191241,0.00023898,2]
[426700924,1782751835000,-157.64790287,0.00023898,2]
[426700922,1782751835000,-566.4542782,0.00023768,2]
[426700927,1782751835000,-157.42540216,0.00023898,2]
[426700926,1782751835000,-162.85327593,0.00023898,2]
[426700935,1782751835000,-195.68729321,0.00023902,2]
[426700949,1782751835000,-176.33273633,0.00023907,2]
[426700948,1782751835000,-166.63566105,0.00023907,2]
[426700952,1782751835000,-152.36076636,0.00023907,2]
[426700973,1782751835000,-57904.97,0.00024174,2]
[426700974,1782751835000,-10351.40320883,0.000242,2]
[426700975,1782751835000,-291.86670661,0.000242,2]
[426700976,1782751835000,-166.67964073,0.000242,2]
[426700977,1782751835000,-197.19051787,0.000242,2]
[426700982,1782751835000,-160.0,0.00024227,2]
[426700985,1782751835000,-291.86670661,0.000245,2]
[426700984,1782751835000,-10351.40320883,0.000245,2]
[426700980,1782751835000,-216.58458871,0.00024227,2]
[426700988,1782751835000,-1094.57677152,0.000245,2]